{"text_format":"1","workbook":"xlsx","n_sheets":4,"sheets":["TAPAHTUMAT","KOONTISIVU","Parametrit","Mallijoukkue"],"not_rendered":{"charts":0,"images":0,"macros":1,"external_links":0,"defined_names":1,"comments":0,"pivot_tables":0},"unopened":[],"bounds":{"document_bytes":16777216,"sheet_cells":100000,"rows_first":2000,"rows_last":500,"rows_between":2000,"halvings":0,"cell_chars":16384,"cell_head_chars":4096},"cells_cut":0,"cells_raw":0,"read":"whole","date_system":"1900"}

{"sheet":"TAPAHTUMAT","index":0,"n_rows":107,"n_cols":3,"rows_kept":107,"cut":false,"hidden":false,"merged":[[2,1,2,2],[0,1,0,2],[1,1,1,2]]}
["YHDISTYS/SEURA:",{"$f":"IF(KOONTISIVU!$C$2=\"\",\"\",KOONTISIVU!$C$2)","v":""}]
["TOIMINTAVUOSI:",{"$f":"IF(KOONTISIVU!$C$3=\"\",\"\",KOONTISIVU!$C$3)","v":2025}]
["PISTEET:",{"$f":"SUM($C:$C)","v":0}]
[]
["Paikka ja pvm","Tapahtuman tiedot","Osallistujien lkm"]
[]
["Paikka ja pvm","Tapahtuman tiedot","Osallistujien lkm"]
[]
["Paikka ja pvm","Tapahtuman tiedot","Osallistujien lkm"]
[]
["Paikka ja pvm","Tapahtuman tiedot","Osallistujien lkm"]
[]
["Paikka ja pvm","Tapahtuman tiedot","Osallistujien lkm"]
[]
["Paikka ja pvm","Tapahtuman tiedot","Osallistujien lkm"]
[]
["Paikka ja pvm","Tapahtuman tiedot","Osallistujien lkm"]
[]
["Paikka ja pvm","Tapahtuman tiedot","Osallistujien lkm"]
[]
["Paikka ja pvm","Tapahtuman tiedot","Osallistujien lkm"]
[]
["Paikka ja pvm","Tapahtuman tiedot","Osallistujien lkm"]
[]
["Paikka ja pvm","Tapahtuman tiedot","Osallistujien lkm"]
[]
["Paikka ja pvm","Tapahtuman tiedot","Osallistujien lkm"]
[]
["Paikka ja pvm","Tapahtuman tiedot","Osallistujien lkm"]
[]
["Paikka ja pvm","Tapahtuman tiedot","Osallistujien lkm"]
[]
["Paikka ja pvm","Tapahtuman tiedot","Osallistujien lkm"]
[]
["Paikka ja pvm","Tapahtuman tiedot","Osallistujien lkm"]
[]
["Paikka ja pvm","Tapahtuman tiedot","Osallistujien lkm"]
[]
["Paikka ja pvm","Tapahtuman tiedot","Osallistujien lkm"]
[]
["Paikka ja pvm","Tapahtuman tiedot","Osallistujien lkm"]
[]
["Paikka ja pvm","Tapahtuman tiedot","Osallistujien lkm"]
[]
["Paikka ja pvm","Tapahtuman tiedot","Osallistujien lkm"]
[]
["Paikka ja pvm","Tapahtuman tiedot","Osallistujien lkm"]
[]
["Paikka ja pvm","Tapahtuman tiedot","Osallistujien lkm"]
[]
["Paikka ja pvm","Tapahtuman tiedot","Osallistujien lkm"]
[]
["Paikka ja pvm","Tapahtuman tiedot","Osallistujien lkm"]
[]
["Paikka ja pvm","Tapahtuman tiedot","Osallistujien lkm"]
[]
["Paikka ja pvm","Tapahtuman tiedot","Osallistujien lkm"]
[]
["Paikka ja pvm","Tapahtuman tiedot","Osallistujien lkm"]
[]
["Paikka ja pvm","Tapahtuman tiedot","Osallistujien lkm"]
[]
["Paikka ja pvm","Tapahtuman tiedot","Osallistujien lkm"]
[]
["Paikka ja pvm","Tapahtuman tiedot","Osallistujien lkm"]
[]
["Paikka ja pvm","Tapahtuman tiedot","Osallistujien lkm"]
[]
["Paikka ja pvm","Tapahtuman tiedot","Osallistujien lkm"]
[]
["Paikka ja pvm","Tapahtuman tiedot","Osallistujien lkm"]
[]
["Paikka ja pvm","Tapahtuman tiedot","Osallistujien lkm"]
[]
["Paikka ja pvm","Tapahtuman tiedot","Osallistujien lkm"]
[]
["Paikka ja pvm","Tapahtuman tiedot","Osallistujien lkm"]
[]
["Paikka ja pvm","Tapahtuman tiedot","Osallistujien lkm"]
[]
["Paikka ja pvm","Tapahtuman tiedot","Osallistujien lkm"]
[]
["Paikka ja pvm","Tapahtuman tiedot","Osallistujien lkm"]
[]
["Paikka ja pvm","Tapahtuman tiedot","Osallistujien lkm"]
[]
["Paikka ja pvm","Tapahtuman tiedot","Osallistujien lkm"]
[]
["Paikka ja pvm","Tapahtuman tiedot","Osallistujien lkm"]
[]
["Paikka ja pvm","Tapahtuman tiedot","Osallistujien lkm"]
[]
["Paikka ja pvm","Tapahtuman tiedot","Osallistujien lkm"]
[]
["Paikka ja pvm","Tapahtuman tiedot","Osallistujien lkm"]
[]
["Paikka ja pvm","Tapahtuman tiedot","Osallistujien lkm"]
[]
["Paikka ja pvm","Tapahtuman tiedot","Osallistujien lkm"]
[]
["Paikka ja pvm","Tapahtuman tiedot","Osallistujien lkm"]
[]
["Paikka ja pvm","Tapahtuman tiedot","Osallistujien lkm"]
[]
["Paikka ja pvm","Tapahtuman tiedot","Osallistujien lkm"]
[]
["Paikka ja pvm","Tapahtuman tiedot","Osallistujien lkm"]

{"sheet":"KOONTISIVU","index":1,"n_rows":18,"n_cols":154,"rows_kept":18,"cut":false,"hidden":false,"merged":[[1,2,1,4],[2,2,2,4]]}
[]
[null,"Yhdistys/seura"]
[null,"Toimintavuosi",2025]
[null,"Joukkueiden pisteet  ",null,null,{"$f":"SUM($E$9:$E$501)","v":0}]
[null,"Tapahtumien pisteet ",null,null,{"$f":"TAPAHTUMAT!$B$3","v":0}]
[null,"Yhteensä",null,null,{"$f":"$E$4+$E$5","v":0}," "]
[]
[null,"Ryhmä","Ohjaaja","Kerroinryhmä","Pisteet yhteensä"]
[]
[]
[]
[]
[]
[]
[]
[]
[]
[null,null,null,null,null,null,null,null,null,null,null,null,null,null,null,null,null,null,null,null,null,null,null,null,null,null,null,null,null,null,null,null,null,null,null,null,null,null,null,null,null,null,null,null,null,null,null,null,null,null,null,null,null,null,null,null,null,null,null,null,null,null,null,null,null,null,null,null,null,null,null,null,null,null,null,null,null,null,null,null,null,null,null,null,null,null,null,null,null,null,null,null,null,null,null,null,null,null,null,null,null,null,null,null,null,null,null,null,null,null,null,null,null,null,null,null,null,null,null,null,null,null,null,null,null,null,null,null,null,null,null,null,null,null,null,null,null,null,null,null,null,null,null,null,null,null,null,null,null,null,null,null,null,{"$f":"KOONTISIVU!#REF!=SUM(D18:EW18)","v":{"$error":"#REF!"}}]

{"sheet":"Parametrit","index":2,"n_rows":5,"n_cols":2,"rows_kept":5,"cut":false,"hidden":true,"merged":[]}
["Kerroinryhmä","Pisteet"]
["Lapset (0-12v)",2]
["Nuoret (13-19v)",3]
["Aikuiset",1]
["Erityisryhmä",4]

{"sheet":"Mallijoukkue","index":3,"n_rows":46,"n_cols":107,"rows_kept":46,"cut":false,"hidden":true,"merged":[[2,44,2,45],[2,46,2,47],[2,48,2,49],[2,50,2,51],[2,52,2,53],[2,104,2,105],[2,100,2,101],[2,102,2,103],[2,78,2,79],[2,56,2,57],[2,58,2,59],[2,60,2,61],[2,62,2,63],[2,64,2,65],[2,66,2,67],[2,92,2,93],[2,94,2,95],[2,96,2,97],[2,98,2,99],[2,42,2,43],[2,2,2,3],[2,4,2,5],[2,6,2,7],[2,30,2,31],[2,8,2,9],[2,10,2,11],[2,12,2,13],[2,14,2,15],[2,16,2,17],[2,18,2,19],[2,20,2,21],[2,22,2,23],[2,24,2,25],[2,26,2,27],[2,28,2,29],[2,32,2,33],[2,34,2,35],[2,36,2,37],[2,38,2,39],[2,40,2,41],[2,54,2,55],[2,90,2,91],[2,68,2,69],[2,70,2,71],[2,72,2,73],[2,74,2,75],[2,76,2,77],[2,80,2,81],[2,82,2,83],[2,84,2,85],[2,86,2,87],[2,88,2,89]]}
["TOIMINTARYHMÄ:",null,null,null,null,null,null,""]
["OHJAAJA:"]
["KERROINRYHMÄ:","KERROINLUKU:",1,null,2,null,3,null,4,null,5,null,6,null,7,null,8,null,9,null,10,null,11,null,12,null,13,null,14,null,15,null,16,null,17,null,18,null,19,null,20,null,21,null,22,null,23,null,24,null,25,null,26,null,27,null,28,null,29,null,30,null,31,null,32,null,33,null,34,null,35,null,36,null,37,null,38,null,39,null,40,null,41,null,42,null,43,null,44,null,45,null,46,null,47,null,48,null,49,null,50,null,51,null,52]
[null,{"$f":"VLOOKUP(A4,Parametrit!A1:B5,2,FALSE)","v":{"$error":"#N/A"}},"PVM","PVM","PVM","PVM","PVM","PVM","PVM","PVM","PVM","PVM","PVM","PVM","PVM","PVM","PVM","PVM","PVM","PVM","PVM","PVM","PVM","PVM","PVM","PVM","PVM","PVM","PVM","PVM","PVM","PVM","PVM","PVM","PVM","PVM","PVM","PVM","PVM","PVM","PVM","PVM","PVM","PVM","PVM","PVM","PVM","PVM","PVM","PVM","PVM","PVM","PVM","PVM","PVM","PVM","PVM","PVM","PVM","PVM","PVM","PVM","PVM","PVM","PVM","PVM","PVM","PVM","PVM","PVM","PVM","PVM","PVM","PVM","PVM","PVM","PVM","PVM","PVM","PVM","PVM","PVM","PVM","PVM","PVM","PVM","PVM","PVM","PVM","PVM","PVM","PVM","PVM","PVM","PVM","PVM","PVM","PVM","PVM","PVM","PVM","PVM","PVM","PVM","PVM","PVM"]
["OSALLISTUJAN NIMI","SYNTYMÄVUOSI"]
[]
[]
[]
[]
[]
[]
[]
[]
[]
[]
[]
[]
[]
[]
[]
[]
[]
[]
[]
[]
[]
[]
[]
[]
[]
[]
[]
[]
[]
[]
[]
[]
[]
[]
[]
[]
[]
[]
[]
[null,null,null,null,null,null,null,null,null,null,null,null,null,null,null,null,null,null,null,null,null,null,null,null,null,null,null,null,null,null,null,null,null,null,null,null,null,null,null,null,null,null,null,null,null,null,null,null,null,null,null,null,null,null,null,null,null,null,null,null,null,null,null,null,null,null,null,null,null,null,null,null,null,null,null,null,null,null,null,null,null,null,null,null,null,null,null,null,null,null,null,null,null,null,null,null,null,null,null,null,null,null,null,null,null,null,"YHTEENSÄ"]
[null,"Yhteensä",{"$f":"COUNTA(C6:C45)","v":0},0,0,0,0,0,0,0,0,0,0,0,0,0,0,0,0,0,0,0,0,0,0,0,0,0,0,0,0,0,0,0,{"$f":"COUNTA(AI6:AI45)","v":0},0,0,0,0,0,0,0,0,0,0,0,0,0,0,0,0,0,0,0,0,0,0,0,0,0,0,0,0,0,0,0,{"$f":"COUNTA(BO6:BO45)","v":0},0,0,0,0,0,0,0,0,0,0,0,0,0,0,0,0,0,0,0,0,0,0,0,0,0,0,0,0,0,0,0,{"$f":"COUNTA(CU6:CU45)","v":0},0,0,0,0,0,0,0,{"$f":"SUM(C46:DB46)*B4","v":{"$error":"#N/A"}}]